Cogmind - Beta 13 @@@ ROGUE MODE // 2024.04.01 @ 13:21:07 Player: Mantreise Result: Destroyed by JB-EUE(z) with Zionite Laser-S Performance ------------- Evolutions (1) 500 Regions Visited (6) 1200 Robots Destroyed (38) 190 Value Destroyed (617) 617 Prototype IDs (5) 100 Alien Tech Used (0) 0 Bonus (600) 600 TOTAL SCORE: 3207 Bonus ------- Met Imprinter 300 Was Imprinted 300 Cogmind --------- Core Integrity 0/400 Matter 232/300 Energy 97/100 System Corruption 0% Temperature Cool (15) Movement Flying (37) Location -7/Deep Caves Parts ------- > --- POWER (1) -------- (None) > --- PROPULSION (2) --- Improved Flight Unit Improved Flight Unit > --- UTILITY (4) ------ Sensor Array Signal Interpreter Hacking Suite > --- WEAPON (2) ------- Improved Datajack > --- INVENTORY (5) ---- Makeshift ECM Suite Hacking Drone Bay (1/1) Small Laser Peak State ------------ > --- POWER ------------ Light Ion Engine > --- PROPULSION ------- Improved Flight Unit Improved Flight Unit > --- UTILITY ---------- Signal Interpreter Hacking Suite System Shield Hacking Drone Bay > --- WEAPON ----------- Makeshift Shrapnel Gun Improved Datajack > --- INVENTORY -------- Improved Flight Unit Sensor Array Makeshift ECM Suite Small Laser [Rating: 30] Favorites ----------- Power Light Ion Engine Engine Light Ion Engine Power Core Light Nuclear Core Propulsion Improved Flight Unit Treads Light Treads Flight Unit Improved Flight Unit Utility Hacking Suite Device Hacking Drone Bay Processor Signal Interpreter Hackware Hacking Suite Weapon Makeshift Shrapnel Gun Energy Gun Small Laser Ballistic Gun Makeshift Shrapnel Gun Special Melee Weapon Improved Datajack Build | -11 -10 -10 -9 -9 -7 -7 ------- Run | Yrd Mat Min Mat Min Zio Dee Slots Evolved 2 | . . . 2 . . . Power . | . . . . . . . Propulsion . | . . . . . . . Utility 2 | . . . 2 . . . Weapon . | . . . . . . . Parts Attached 44 | 5 9 6 20 . . 4 Power 8 | 1 1 2 4 . . . Engine 7 | 1 1 1 4 . . . Core 1 | . . 1 . . . . Reactor . | . . . . . . . Propulsion 9 | 2 2 1 3 . . 1 Treads 2 | 2 . . . . . . Leg . | . . . . . . . Wheel . | . . . . . . . Hover . | . . . . . . . Flight 7 | . 2 1 3 . . 1 Utility 8 | . 2 . 3 . . 3 Device 4 | . . . 1 . . 3 Storage . | . . . . . . . Processor 2 | . 1 . 1 . . . Hackware 2 | . 1 . 1 . . . Protection . | . . . . . . . Artifact . | . . . . . . . Weapon 19 | 2 4 3 10 . . . Energy Gun 6 | 2 2 1 1 . . . Energy Cannon . | . . . . . . . Ballistic Gun 6 | . . 2 4 . . . Ballistic Cannon . | . . . . . . . Launcher . | . . . . . . . Special Weapon . | . . . . . . . Impact Weapon . | . . . . . . . Slashing Weapon . | . . . . . . . Piercing Weapon . | . . . . . . . Special Melee Weapon 7 | . 2 . 5 . . . Unidentified Prototypes 2 | . . . 1 . . 1 Parts Lost 6 | . . 1 1 . . 4 Power 2 | . . . 1 . . 1 Propulsion 2 | . . 1 . . . 1 Utility 1 | . . . . . . 1 Weapon 1 | . . . . . . 1 Highest Loss Streak 3 | . . 1 1 . . 3 To Critical Strikes . | . . . . . . . Average Slot Usage (%) 94 | . 90 97 87 100 100 98 Engine 11 | . 14 14 8 11 11 10 Treads 2 | . 14 . . . . . Flight 20 | . 13 25 20 22 22 21 Device 2 | . . . 1 . . 10 Processor 15 | . 6 14 20 22 22 11 Hackware 19 | . 12 14 22 22 22 21 Energy Gun 7 | . 26 18 . . . . Ballistic Gun 7 | . . 9 6 11 11 11 Special Melee Weapon 6 | . 1 . 7 11 11 11 Naked Turns . | . . . . . . . Heaviest Build 10 | 5 7 8 10 6 6 7 Greatest Support 40 | 40 40 8 10 10 10 10 Greatest Overweight (x) 1 | . 1 1 . . . . Average Overweight (x) . | . . . . . . . Largest Inventory Capacity 5 | 5 5 5 5 5 5 5 Average Capacity 5 | 5 5 5 5 5 5 5 Most Carried 5 | 2 3 5 5 3 5 5 Average Carried 3 | . . 3 3 3 4 3 Final Capacity 5 | 5 5 5 5 5 5 5 Final Carried 5 | . 2 4 3 3 5 3 Class Distribution -------------------- 65% | Hacker-Mutant 34% | Mutant Dominant Class ---------------- Mutant | -10/Materials Mutant | -10/Mines Hacker-Mutant | -9/Materials Hacker-Mutant | -9/Mines Hacker-Mutant | -7/Zion Hacker-Mutant | -7/Deep Caves Resources | -11 -10 -10 -9 -9 -7 -7 ----------- Run | Yrd Mat Min Mat Min Zio Dee Matter Collected 807 | 225 115 74 366 . . 27 Remotely . | . . . . . . . Salvage Created 1058 | . 267 200 564 . . 27 Parts 83 | . 27 12 40 . . 4 Haulers Intercepted 4 | . 1 . 3 . . . Recyclers Shooed . | . . . . . . . Parts Field Recycled . | . . . . . . . Retrieved Matter . | . . . . . . . Parts Self-Destructed . | . . . . . . . Prevented . | . . . . . . . Kills | -11 -10 -10 -9 -9 -7 -7 ------- Run | Yrd Mat Min Mat Min Zio Dee Combat Hostiles Destroyed 29 | . 8 5 13 . . 3 Guns 29 | . 8 5 13 . . 3 Classes Destroyed 9 | . 5 1 2 . . 1 Worker 2 | . . . 2 . . . Hauler 4 | . 1 . 3 . . . Recycler 2 | . . 1 1 . . . Operator 1 | . 1 . . . . . Watcher 3 | . 2 . 1 . . . Swarmer 17 | . 6 3 8 . . . Grunt 7 | . 2 2 3 . . . Sentry 2 | . . . 2 . . . Z-Technician 1 | . . . . . . 1 Assembled 3 | . . . . . . 3 Best Kill Streak 9 | . 7 3 9 . . 2 Combat Bots Only 6 | . 3 3 6 . . 2 Max Kills in Single Turn 2 | . 2 2 2 . . 1 Gunslinging 1 | . 1 . . . . . Exploded . | . . . . . . . Melee . | . . . . . . . Uniques/NPCs Destroyed . | . . . . . . . Combat | -11 -10 -10 -9 -9 -7 -7 -------- Run | Yrd Mat Min Mat Min Zio Dee Hostile Shots Fired 182 | . 33 28 83 . . 38 Missed 88 | . 17 14 41 . . 16 Damage Taken 1208 | . 168 151 413 . . 476 Core 566 | . 79 61 114 . . 312 Absorbed by Shields . | . . . . . . . Regen/Repaired (Parts) 198 | . . . 198 . . . Core Remaining (%) 72 | 100 . 44 . . . . Volleys Fired 94 | . 30 17 32 . . 15 Largest 2 | . 2 2 1 . . 1 Hottest 80 | . 80 80 24 . . 24 Shots Fired 131 | . 56 28 32 . . 15 Gun 131 | . 56 28 32 . . 15 Cannon . | . . . . . . . Launcher . | . . . . . . . Special . | . . . . . . . Kinetic 53 | . . 6 32 . . 15 Thermal 78 | . 56 22 . . . . Explosive . | . . . . . . . Electromagnetic . | . . . . . . . Robot Hit Streak 7 | . 5 6 7 . . 5 Robot Miss Streak 7 | . 7 4 4 . . 5 Penetration Max . | . . . . . . . Secondary Targets 5 | . 4 1 . . . . Max Gunslinging Chain 1 | . 1 1 . . . . Shots Hit Robots 100 | . 29 19 36 . . 16 Core Hits 70 | . 18 11 30 . . 11 Critical Kills . | . . . . . . . Critical Parts Destroyed . | . . . . . . . Critical Strikes . | . . . . . . . Melee Attacks 13 | . 3 . 8 . . 2 Impact . | . . . . . . . Slashing . | . . . . . . . Piercing . | . . . . . . . Sneak Attacks 7 | . 2 . 4 . . 1 Combat Hostiles 1 | . . . . . . 1 Follow-up Attacks . | . . . . . . . Damage Inflicted 1276 | . 288 236 538 . . 214 Guns 1276 | . 288 236 538 . . 214 Cannons . | . . . . . . . Explosions . | . . . . . . . Melee . | . . . . . . . Ramming . | . . . . . . . Kinetic 827 | . . 75 538 . . 214 Thermal 449 | . 288 161 . . . . Explosive . | . . . . . . . Electromagnetic . | . . . . . . . Impact . | . . . . . . . Slashing . | . . . . . . . Piercing . | . . . . . . . Highest Corruption . | . . . . . . . Average Corruption . | . . . . . . . Corruption Purged . | . . . . . . . Corruption Blocked . | . . . . . . . Overload Shots . | . . . . . . . Overflow Damage . | . . . . . . . Projectiles . | . . . . . . . Explosions . | . . . . . . . Melee . | . . . . . . . Knockbacks . | . . . . . . . Impact . | . . . . . . . Kinetic . | . . . . . . . Secondary . | . . . . . . . Self-Inflicted Damage 25 | . 25 . . . . . Shots 1 | . 1 . . . . . Rammed . | . . . . . . . Targets Rammed . | . . . . . . . Kicked . | . . . . . . . Crushed . | . . . . . . . Highest Temperature 302 | . 144 302 . . . 13 Average Temperature 70 | . 35 153 . . . 7 Received Heat Transfer 292 | . 30 36 87 . . 139 Effects 1 | . . 1 . . . . Energy Bleed 1 | . . 1 . . . . Siege Activations . | . . . . . . . Robots Corrupted . | . . . . . . . Combat Hostiles . | . . . . . . . Parts Fried . | . . . . . . . Impact Corruptions . | . . . . . . . Robots Melted . | . . . . . . . Combat Hostiles . | . . . . . . . Parts Melted 2 | . . 2 . . . . Heat Transferred 1025 | . 650 375 . . . . Parts Sabotaged . | . . . . . . . Parts Stolen . | . . . . . . . Parts Stripped . | . . . . . . . Power Chain Reactions . | . . . . . . . Alert | -11 -10 -10 -9 -9 -7 -7 ------- Run | Yrd Mat Min Mat Min Zio Dee Peak Influence 352 | . 209 196 352 136 . . Initial 136 | . . 81 76 136 . . Average 142 | . 90 138 200 136 . . Maximum Alert Level 1 | . 1 . 1 . . . Low Security (%) 78 | 100 94 100 50 100 . . Level 1 21 | . 5 . 50 . . . Level 2 . | . . . . . . . Level 3 . | . . . . . . . Level 4 . | . . . . . . . Level 5 . | . . . . . . . High Security . | . . . . . . . Max Security . | . . . . . . . Squads Dispatched 5 | . 1 2 2 . . . Investigation 5 | . 1 2 2 . . . Extermination . | . . . . . . . Reinforcement . | . . . . . . . Assault . | . . . . . . . Garrison . | . . . . . . . Intercept . | . . . . . . . Searches Triggered . | . . . . . . . Construction Impeded . | . . . . . . . Haulers Reinforced . | . . . . . . . Active Scanning Responses . | . . . . . . . Cargo Convoy Interrupts . | . . . . . . . Stealth | -11 -10 -10 -9 -9 -7 -7 --------- Run | Yrd Mat Min Mat Min Zio Dee Distress Signals 2 | . 1 . 1 . . . Communications Jammed . | . . . . . . . Distress Signals . | . . . . . . . Times Spotted 51 | . 13 5 23 . . 10 Peak Tracking Total 7 | . 5 3 7 . . 5 Tactical Retreats . | . . . . . . . Traps | -11 -10 -10 -9 -9 -7 -7 ------- Run | Yrd Mat Min Mat Min Zio Dee Traps Triggered . | . . . . . . . Indirectly . | . . . . . . . Trap Hack Attempts 7 | . . . 7 . . . Triggered . | . . . . . . . Disarmed 2 | . . . 2 . . . Reprogrammed . | . . . . . . . Reused . | . . . . . . . Traps Extracted . | . . . . . . . Installed . | . . . . . . . Triggered . | . . . . . . . Machines | -11 -10 -10 -9 -9 -7 -7 ---------- Run | Yrd Mat Min Mat Min Zio Dee Machines Disabled 2 | . 2 . . . . . Max in Single Turn 2 | . 2 . . . . . Machines Repaired . | . . . . . . . Machines Dismantled . | . . . . . . . Machines Sabotaged . | . . . . . . . Overloaded Fab Kills . | . . . . . . . Hacking | -11 -10 -10 -9 -9 -7 -7 --------- Run | Yrd Mat Min Mat Min Zio Dee Machines Accessed 12 | . 4 2 6 . . . Terminals 8 | . 3 1 4 . . . Fabricators . | . . . . . . . Repair Stations 1 | . . . 1 . . . Recycling Units 1 | . 1 . . . . . Scanalyzers 1 | . . . 1 . . . Garrison Access . | . . . . . . . Total Hacks 58 | . 9 3 46 . . . Successful 41 | . 3 1 37 . . . Failed 17 | . 6 2 9 . . . Catastrophic 1 | . . . 1 . . . Database Lockouts . | . . . . . . . Manual 20 | . 1 1 12 . 6 . Terminals 34 | . 8 2 24 . . . Fabricators . | . . . . . . . Repair Stations 16 | . . . 16 . . . Recycling Units 1 | . 1 . . . . . Scanalyzers 6 | . . . 6 . . . Garrison Access . | . . . . . . . Terminal Hacks 17 | . 2 1 14 . . . Record 5 | . . . 5 . . . Robot Analysis 1 | . . . 1 . . . Prototype ID Bank 2 | . 1 . 1 . . . Open Door 1 | . . 1 . . . . Branch Access Points 1 | . . . 1 . . . Emergency Access Points 1 | . . . 1 . . . Unreport Threat 1 | . 1 . . . . . Reprogram Traps 1 | . . . 1 . . . Maintenance Status 1 | . . . 1 . . . Transport Status 1 | . . . 1 . . . Hauler Manifests 1 | . . . 1 . . . Zone Layout 1 | . . . 1 . . . Fabricator Hacks . | . . . . . . . Repair Station Hacks 15 | . . . 15 . . . Scan Component 8 | . . . 8 . . . Repair 7 | . . . 7 . . . Recycling Unit Hacks . | . . . . . . . Scanalyzer 6 | . . . 6 . . . Insert Component 3 | . . . 3 . . . Analyze 3 | . . . 3 . . . Garrison Access Hacks . | . . . . . . . Unauthorized Hacks 3 | . 1 . 2 . . . Terminals 2 | . . . 2 . . . Botnet 2 | . . . 2 . . . Fabricators . | . . . . . . . Repair Stations . | . . . . . . . Recycling Units 1 | . 1 . . . . . Reject 1 | . 1 . . . . . Scanalyzers . | . . . . . . . Garrison Access . | . . . . . . . Data Cores Recovered 1 | . 1 . . . . . Used . | . . . . . . . Hacking Detections 8 | . 3 1 4 . . . Full Trace Events 4 | . 1 1 2 . . . Feedback Events . | . . . . . . . Feedback Blocked . | . . . . . . . Robot Schematics Acquired . | . . . . . . . Robots Built . | . . . . . . . Authchips . | . . . . . . . Time . | . . . . . . . Total Robot Build Rating . | . . . . . . . Part Schematics Acquired 3 | . . . 3 . . . Parts Built . | . . . . . . . Authchips . | . . . . . . . Time . | . . . . . . . Total Part Build Rating . | . . . . . . . Parts Repaired 7 | . . . 7 . . . Time 243 | . . . 243 . . . Parts Recycled . | . . . . . . . Recycled Matter . | . . . . . . . Retrieved Matter . | . . . . . . . Retrieved Components . | . . . . . . . Parts Scanalyzed 3 | . . . 3 . . . Part Schematics Acquired 3 | . . . 3 . . . Parts Damaged . | . . . . . . . Bothacking | -11 -10 -10 -9 -9 -7 -7 ------------ Run | Yrd Mat Min Mat Min Zio Dee Used RIF Installer . | . . . . . . . Robots Hacked 7 | . 2 . 4 . . 1 Non-combat 5 | . 2 . 3 . . . Combat 2 | . . . 1 . . 1 Robot Hacks Applied 8 | . 3 . 4 . . 1 parse_system 6 | . 2 . 3 . . 1 no_distress 2 | . 1 . 1 . . . Relay Couplers Released . | . . . . . . . Fabnet Peak Effective % . | . . . . . . . Robots Rewired . | . . . . . . . Allies Hacked . | . . . . . . . Hacks Repelled . | . . . . . . . Allies | -11 -10 -10 -9 -9 -7 -7 -------- Run | Yrd Mat Min Mat Min Zio Dee Total Allies 4 | . . . . . 4 . Largest Group 4 | . . . . . 4 3 Highest-Rated Group 154 | . . . . . 154 116 Highest-Rated Ally 40 | . . . . . 40 40 Total Orders 5 | . . . . . . 5 ROAM 4 | . . . . . . 4 EXPLORE 1 | . . . . . . 1 Ally Attacks . | . . . . . . . Total Damage . | . . . . . . . Kills . | . . . . . . . Allies Corrupted . | . . . . . . . Allies Melted . | . . . . . . . Intel | -11 -10 -10 -9 -9 -7 -7 ------- Run | Yrd Mat Min Mat Min Zio Dee Robot Analysis Total 1 | . . . 1 . . . Derelict Logs Recovered 3 | . . 2 . . 1 . Drone Launches 5 | . . . . . . 5 Drone Recoveries 5 | . . . . . . 5 Exploration | -11 -10 -10 -9 -9 -7 -7 ------------- Run | Yrd Mat Min Mat Min Zio Dee Turns Passed 2388 | 88 351 381 570 10 577 411 Spaces Moved 3122 | 52 333 757 459 26 1239 256 Core 7 | 4 3 . . . . . Treads 140 | 48 92 . . . . . Legs . | . . . . . . . Wheels . | . . . . . . . Hover . | . . . . . . . Flight 2975 | . 238 757 459 26 1239 256 Fastest Speed 37 | 50 37 37 37 37 37 37 Average Speed 43 | 151 71 42 37 37 37 37 Slowest Speed 160 | 160 160 120 37 37 37 37 Overloaded Moves . | . . . . . . . Propulsion Burnouts . | . . . . . . . Robots Hopped 3 | . 2 1 . . . . Cave-ins Triggered . | . . . . . . . Exploration Rate (%) 47 | 5 49 97 32 9 88 51 Regions Visited 6 Branch Regions 4 Pre-discovered Areas 2 | . . . . 1 1 . Known Exits Taken 5 | . 1 1 1 1 1 . Unknown Exits Taken 1 | 1 . . . . . . Scrap Searched 4 | . . 2 . . 2 . Spaces Dug . | . . . . . . . Terrain Destroyed 33 | . 33 . . . . . Melee . | . . . . . . . Projectile . | . . . . . . . AOE 33 | . 33 . . . . . Terrain Rammed . | . . . . . . . Walls Destroyed . | . . . . . . . Machines Disabled . | . . . . . . . Actions | -11 -10 -10 -9 -9 -7 -7 --------- Run | Yrd Mat Min Mat Min Zio Dee Total 3995 | 61 384 786 827 25 1356 556 Wait 678 | . 2 1 280 . 116 279 Move 3110 | 51 328 754 458 25 1238 256 Hop 3 | . 2 1 . . . . Pick Up 32 | 5 7 5 13 . 2 . Fast Attach . | . . . . . . . Attach 24 | 5 4 1 13 . . 1 Detach 5 | . . . 5 . . . Swap 20 | . 5 5 7 . . 3 Drop 9 | . 3 2 4 . . . Fire 94 | . 30 17 32 . . 15 Melee 13 | . 3 . 8 . . 2 Ram . | . . . . . . . Kick . | . . . . . . . Crush . | . . . . . . . Escape Stasis . | . . . . . . . Rewire . | . . . . . . . Trap 7 | . . . 7 . . . Miscellaneous . | . . . . . . . Route ------- -11/Scrapyard -10/Materials (discovered 2 exits: *Mat / *Min) -10/Mines (discovered 2 exits: *Mat x2) -9/Materials (discovered 4 exits: *Min x2 / Sto x2) -9/Mines -7/Zion -7/Deep Caves History --------- Turn | Location | Event 25 | -11/Scrapyard | Discovered new exit (range 15) 89 | -11/Scrapyard | Entered Materials 207 | -10/Materials | Discovered new exit (range 15) 318 | -10/Materials | Build established: Mutant 328 | -10/Materials | Discovered new exit (range 15) 363 | -10/Materials | Identified exit to Materials 437 | -10/Materials | Identified exit to Mines 440 | -10/Materials | Entered Mines 446 | -10/Mines | Discovered exit to Materials (range 10) 456 | -10/Mines | A weapon hastily lodged in a ceiling crevice suddenly fell to the ground 502 | -10/Mines | Learned Materials emergency access door positions 535 | -10/Mines | Discovered exit to Materials (range 7) 674 | -10/Mines | Core integrity fell below 50% 761 | -10/Mines | Met a Derelict shopkeep closing up shop 776 | -10/Mines | Learned Materials trap positions 821 | -10/Mines | Entered Materials 821 | -9/Materials | Evolved 2 slots: Utility x2 822 | -9/Materials | Loaded intel: 19 trap records 868 | -9/Materials | Repaired Ion Engine 891 | -9/Materials | Discovered new exit (range 14) 895 | -9/Materials | Repaired Sml. Laser? 946 | -9/Materials | Identified exit to Mines 946 | -9/Materials | Identified exit to Storage 1085 | -9/Materials | Repaired Mak. Shrapnel Gun 1110 | -9/Materials | Build established: Hacker-Mutant 1118 | -9/Materials | Repaired Imp. Ion Engine 1170 | -9/Materials | Repaired Imp. Flight Unit 1211 | -9/Materials | Repaired Imp. Datajack 1285 | -9/Materials | Repaired Sensor Array 1391 | -9/Materials | Entered Mines 1394 | -9/Mines | A Derelict revealed a hidden shortcut to a safe place 1398 | -9/Mines | Learned location of Storage (-9) 1400 | -9/Mines | Identified exit to Zion 1401 | -9/Mines | Entered Zion 1409 | -7/Zion | Given the Hacking Drone Bay 1409 | -7/Zion | Found Prototype Device 1495 | -7/Zion | Learned 4 Factory zone layouts 1503 | -7/Zion | Acquired unknown access codes intercepted by a Zionite 1532 | -7/Zion | Received a visual enhancement algorithm 1623 | -7/Zion | Opened final containment barrier to the Deep Caves 1629 | -7/Zion | Discovered new exit (range 3) 1629 | -7/Zion | Saw the warning signs outside the Deep Caves entrance 1630 | -7/Zion | Identified exit to Deep Caves 1656 | -7/Zion | Learned Factory emergency access door positions 1695 | -7/Zion | Learned location of Armory (-3) 1819 | -7/Zion | Imprinted 1821 | -7/Zion | Declared Zion's savior 1978 | -7/Zion | Entered Deep Caves 1978 | -7/Deep Caves | Accompanied by 4 allies 1991 | -7/Deep Caves | Identified Hacking Drone Bay 2077 | -7/Deep Caves | Z-Facility disabled 2364 | -7/Deep Caves | Attacked by Z-Imprinter 2365 | -7/Deep Caves | Core integrity fell below 50% 2383 | -7/Deep Caves | Core integrity fell below 20% 2389 | -7/Deep Caves | Destroyed by JB-EUE(z) with Zionite Laser-S Last Messages --------------- as-86466 destroyed. Acquired 5 matter. Hacking Drone released from Hacking Drone Bay. TU-R4J(o) is busy at the terminal. Z-Facility disabled. Hacking Drone retrieved by Hacking Drone Bay. Hacking Drone released from Hacking Drone Bay. Hacking Drone retrieved by Hacking Drone Bay. Hacking Drone released from Hacking Drone Bay. Hacking Drone retrieved by Hacking Drone Bay. NEW_ZION: Z-Facility proximity alert. O1-4YM(o) destroyed. Acquired 9 matter. Destroyed Datajack. Lgt. Ion Engine destroyed. Z-Imprinter: GET AWAY FROM HERE! I've worked too hard for our future just to have you ruin everything! System Shield destroyed. TU-R4J(o) destroyed. Mak. Shrapnel Gun destroyed. Map ----- +----------------------------------------------------+ | | | | | | | | | | | | | | | | | ????????????????????????????????????????##???????? | | ???????????????????????????????????????# !#????### | | ??????????????????????? ???????????????# =??#### | | ??????????????????????# ???????????????# *?## | | ??????????????????????# ##?????##??????# ### | | ?????????????????????? ######zzz#???# ## | | ?????????????????????? # ## | | ?????????????????????? | | ??????????????????????? | | ??????????????????????? | | ??????????????????????## | | ??????????????????????# " """ | | ???????????????????#### """"" | | ???????????????????# # """""" | | ???????????????????? """""" | | ?????????????????????# """""" | | ??????????????????????# """?"" | | ?????????????????????## @ ""???" | | ?????????????????????# ""???" | | ?????????????????????## """??" | | ??????????????????????# """?"" | | ??????????????????## # """"" | | ??????????????????# """"" | | ??????????????????# """"" | | ??????????????????# """"" | | ??????????????????## """"" | | ???????????????????### """"" | | ?????????????????????# """"" | | ?????????????????????## """"" | | ??????????????????????# """"" | | ??????????????????????## """"" | | ???????????????????????# """" | | ???????????????????????# """ | | ???????????????????????# """ | | ?????????????????????? """ | | ?????????????????????? """ | | ?????????????????????? """ | | ??????????????????????? "" | | ???????????????????????? | | ?????????????????????????? | | ???????????????????????????? | | ????????????????????????????? | +----------------------------------------------------+ Best States ------------- Heat Dissipation 28 Energy Generation 12 Energy Capacity 265 Matter Stores 300 Matter Capacity 300 Sight Range 16 Robot Scan Range 14 Terrain Scan Density 10 Evasion (%) 62 Recoil Reduction 2 Offensive Hacking 10 Defensive Hacking 10 Item Schematics ----------------- Imp. Flight Unit | -9/Materials | Scanalyzed Imp. Datajack | -9/Materials | Scanalyzed Mak. Shrapnel Gun | -9/Materials | Scanalyzed Robot Schematics ------------------ None Fabricated ------------ Nothing Alien Tech Used ----------------- None Achievements -------------- Adventurer Signs Are For Wimps Challenges ------------ None Game ------ Seed GammaEnergyGreatsword Manual? 0 Play Time 00:51:41 Cumulative 8.5 hours Start 2024.04.01 @ 08:48:42 End 2024.04.01 @ 13:21:07 Sessions 5 Manual Loads 0 Difficulty Rogue Special Mode None Game No. 8 Rogue 6 Adventurer 2 Explorer 0 Win Type - Total 0 Types 0/0/0/0/0/0/0/0/0 Lore% 9 Gallery% 17 Achievement% 17 Wizard Run 0 Options --------- Layout 0 ASCII 0 Keyboard 0 Movement Mouse Keybinds 0 Fullscreen 1 Font 18/SmallcapsGlow Map View 76x50 Zoom Use 89% Tactical HUD 0 Map Filters NONE Filters NONE Steam 1 RUN: 8bb1f015-7dfb-49b2-a029-fa9b342e436b